[Event "Titled Tuesday Blitz August 1 Early 2023"]
[White "Ning, Kaiyu"]
[Black "Timerkhanov, Alexander"]
[WhiteFideId "8614750"]
[BlackFideId "24177938"]
[WhiteElo "2764"]
[BlackElo "2646"]
[Result "1-0"]
[Round "11"]
[TimeControl "180+1"]
[Date "2023.08.01"]
[WhiteClock "0:01:05"]
[BlackClock "0:00:07"]
[Board "30"]

1. e4 {[%clk 0:03:00]}  c5 {[%clk 0:02:59]} 2. Nf3 {[%clk 0:02:55]}  a6 {[%clk 0:03:00]} 3. c4 {[%clk 0:02:55]}  Nc6 {[%clk 0:02:59]} 4. d4 {[%clk 0:02:55]}  cxd4 {[%clk 0:03:00]} 5. Nxd4 {[%clk 0:02:56]}  Nf6 {[%clk 0:03:01]} 6. Nc3 {[%clk 0:02:56]}  e5 {[%clk 0:03:01]} 7. Nf5 {[%clk 0:02:54]}  d5 {[%clk 0:03:01]} 8. cxd5 {[%clk 0:02:32]}  Bxf5 {[%clk 0:03:01]} 9. exf5 {[%clk 0:02:30]}  Nd4 {[%clk 0:03:01]} 10. Bd3 {[%clk 0:02:29]}  Be7 {[%clk 0:02:55]} 11. O-O {[%clk 0:02:28]}  O-O {[%clk 0:02:55]} 12. Re1 {[%clk 0:02:26]}  Nxd5 {[%clk 0:02:55]} 13. Nxd5 {[%clk 0:02:19]}  Qxd5 {[%clk 0:02:55]} 14. Qg4 {[%clk 0:02:19]}  Bf6 {[%clk 0:02:50]} 15. Be4 {[%clk 0:02:19]}  Qd7 {[%clk 0:02:47]} 16. Be3 {[%clk 0:02:19]}  Rac8 {[%clk 0:02:45]} 17. Rad1 {[%clk 0:02:19]}  b5 {[%clk 0:02:45]} 18. h4 {[%clk 0:02:15]}  Rfd8 {[%clk 0:02:45]} 19. h5 {[%clk 0:02:15]}  Qe7 {[%clk 0:02:29]} 20. h6 {[%clk 0:02:11]}  Nc2 {[%clk 0:02:23]} 21. Bxc2 {[%clk 0:01:58]}  Rxc2 {[%clk 0:02:22]} 22. Rxd8+ {[%clk 0:01:56]}  Qxd8 {[%clk 0:02:23]} 23. Rd1 {[%clk 0:01:55]}  Qc8 {[%clk 0:02:05]} 24. Rd6 {[%clk 0:01:44]}  Rc4 {[%clk 0:01:24]} 25. Qg3 {[%clk 0:01:28]}  Kf8 {[%clk 0:00:42]} 26. hxg7+ {[%clk 0:01:21]}  Bxg7 {[%clk 0:00:43]} 27. f6 {[%clk 0:01:21]}  Bxf6 {[%clk 0:00:36]} 28. Rxf6 {[%clk 0:01:18]}  Qc7 {[%clk 0:00:31]} 29. Rf5 {[%clk 0:01:10]}  e4 {[%clk 0:00:14]} 30. Qxc7 {[%clk 0:01:06]}  Rxc7 {[%clk 0:00:15]} 31. Rc5 {[%clk 0:01:06]}  Rd7 {[%clk 0:00:15]} 32. Rc1 {[%clk 0:01:05]}  Ke7 {[%clk 0:00:14]} 33. Kf1 {[%clk 0:01:05]}  Ke6 {[%clk 0:00:15]} 34. Ke2 {[%clk 0:01:05]}  Ke5 {[%clk 0:00:07]} 35. Rc5+ {[%clk 0:01:05]} 1-0


[Site "https://www.chess.com"]

[Event "Titled Tuesday Blitz August 1 Early 2023"]
[White "Mikhailovsky, Vladimir"]
[Black "Sipila, Vilka"]
[WhiteFideId "34105414"]
[BlackFideId "505455"]
[WhiteElo "2751"]
[BlackElo "2643"]
[Result "1-0"]
[Round "11"]
[TimeControl "180+1"]
[Date "2023.08.01"]
[WhiteClock "0:00:37"]
[BlackClock "0:01:18"]
[Board "31"]

1. e4 {[%clk 0:03:00]}  c5 {[%clk 0:02:59]} 2. Nf3 {[%clk 0:03:00]}  e6 {[%clk 0:02:59]} 3. b3 {[%clk 0:02:59]}  Nf6 {[%clk 0:02:59]} 4. e5 {[%clk 0:02:56]}  Nd5 {[%clk 0:02:59]} 5. Bb2 {[%clk 0:02:57]}  Nc6 {[%clk 0:02:58]} 6. Nc3 {[%clk 0:02:56]}  Nxc3 {[%clk 0:02:54]} 7. Bxc3 {[%clk 0:02:53]}  d5 {[%clk 0:02:53]} 8. exd6 {[%clk 0:02:53]}  Qxd6 {[%clk 0:02:52]} 9. g3 {[%clk 0:02:46]}  Nd4 {[%clk 0:02:47]} 10. Bg2 {[%clk 0:02:44]}  Be7 {[%clk 0:02:42]} 11. O-O {[%clk 0:02:39]}  O-O {[%clk 0:02:42]} 12. Re1 {[%clk 0:02:28]}  Bf6 {[%clk 0:02:42]} 13. Nxd4 {[%clk 0:01:46]}  cxd4 {[%clk 0:02:43]} 14. Bb2 {[%clk 0:01:47]}  Rb8 {[%clk 0:02:35]} 15. c4 {[%clk 0:01:40]}  b6 {[%clk 0:02:30]} 16. d3 {[%clk 0:01:38]}  Bb7 {[%clk 0:02:29]} 17. Bxb7 {[%clk 0:01:37]}  Rxb7 {[%clk 0:02:30]} 18. Qf3 {[%clk 0:01:36]}  Rc7 {[%clk 0:02:12]} 19. Bc1 {[%clk 0:01:27]}  b5 {[%clk 0:02:10]} 20. Bf4 {[%clk 0:01:26]}  e5 {[%clk 0:02:10]} 21. Bd2 {[%clk 0:01:26]}  bxc4 {[%clk 0:02:08]} 22. bxc4 {[%clk 0:01:26]}  Qa3 {[%clk 0:02:01]} 23. Reb1 {[%clk 0:01:22]}  a5 {[%clk 0:01:55]} 24. Rb3 {[%clk 0:01:18]}  Qe7 {[%clk 0:01:51]} 25. Bxa5 {[%clk 0:01:15]}  e4 {[%clk 0:01:42]} 26. dxe4 {[%clk 0:01:08]}  Rxc4 {[%clk 0:01:41]} 27. Qd3 {[%clk 0:00:51]}  Rfc8 {[%clk 0:01:18]} 28. Qxc4 {[%clk 0:00:37]} 1-0


[Site "https://www.chess.com"]

[Event "Titled Tuesday Blitz August 1 Early 2023"]
[White "Fantastic_Power"]
[Black "Pham, Le Thao Nguyen"]
[BlackFideId "12401226"]
[WhiteElo "2749"]
[BlackElo "2626"]
[Result "1-0"]
[Round "11"]
[TimeControl "180+1"]
[Date "2023.08.01"]
[WhiteClock "0:00:04"]
[BlackClock "0:00:00"]
[Board "32"]

1. e4 {[%clk 0:02:48]}  c6 {[%clk 0:02:54]} 2. d4 {[%clk 0:02:46]}  d5 {[%clk 0:02:54]} 3. e5 {[%clk 0:02:47]}  Bf5 {[%clk 0:02:54]} 4. h4 {[%clk 0:02:47]}  h5 {[%clk 0:02:53]} 5. c4 {[%clk 0:02:47]}  e6 {[%clk 0:02:53]} 6. Nc3 {[%clk 0:02:48]}  Nd7 {[%clk 0:02:41]} 7. cxd5 {[%clk 0:02:46]}  cxd5 {[%clk 0:02:39]} 8. Bd3 {[%clk 0:02:47]}  Bxd3 {[%clk 0:02:20]} 9. Qxd3 {[%clk 0:02:48]}  Nh6 {[%clk 0:02:18]} 10. Nge2 {[%clk 0:02:41]}  a6 {[%clk 0:02:04]} 11. Bxh6 {[%clk 0:02:16]}  Rxh6 {[%clk 0:02:02]} 12. g3 {[%clk 0:02:17]}  Qb6 {[%clk 0:01:53]} 13. O-O {[%clk 0:02:17]}  Be7 {[%clk 0:01:44]} 14. Rac1 {[%clk 0:02:05]}  g5 {[%clk 0:01:42]} 15. hxg5 {[%clk 0:01:50]}  Bxg5 {[%clk 0:01:43]} 16. f4 {[%clk 0:01:50]}  Be7 {[%clk 0:01:43]} 17. f5 {[%clk 0:01:50]}  Bg5 {[%clk 0:01:37]} 18. fxe6 {[%clk 0:01:38]}  fxe6 {[%clk 0:01:25]} 19. Nf4 {[%clk 0:01:09]}  Bxf4 {[%clk 0:01:19]} 20. Rxf4 {[%clk 0:01:05]}  Ke7 {[%clk 0:00:54]} 21. Rcf1 {[%clk 0:00:28]}  Rg8 {[%clk 0:00:44]} 22. Kh2 {[%clk 0:00:25]}  Kd8 {[%clk 0:00:27]} 23. b3 {[%clk 0:00:23]}  Qb4 {[%clk 0:00:22]} 24. Ne2 {[%clk 0:00:14]}  Qe7 {[%clk 0:00:18]} 25. Rh4 {[%clk 0:00:07]}  Rg4 {[%clk 0:00:14]} 26. Rf4 {[%clk 0:00:05]}  Qg7 {[%clk 0:00:10]} 27. Qe3 {[%clk 0:00:03]}  Rg5 {[%clk 0:00:05]} 28. Ng1 {[%clk 0:00:03]}  Rhg6 {[%clk 0:00:06]} 29. Rf3 {[%clk 0:00:02]}  Rg4 {[%clk 0:00:06]} 30. Rxh5 {[%clk 0:00:03]}  Re4 {[%clk 0:00:05]} 31. Qf2 {[%clk 0:00:03]}  Kc7 {[%clk 0:00:04]} 32. Rf7 {[%clk 0:00:03]}  Qg8 {[%clk 0:00:00]} 33. Rhh7 {[%clk 0:00:04]} 1-0


[Site "https://www.chess.com"]

[Event "Titled Tuesday Blitz August 1 Early 2023"]
[White "Lana Rodriguez, David"]
[Black "Khachiyan, Melikset"]
[WhiteFideId "2270803"]
[BlackFideId "13300512"]
[WhiteElo "2610"]
[BlackElo "2735"]
[Result "1/2-1/2"]
[Round "11"]
[TimeControl "180+1"]
[Date "2023.08.01"]
[WhiteClock "0:00:12"]
[BlackClock "0:00:23"]
[Board "34"]

1. e4 {[%clk 0:03:00]}  e5 {[%clk 0:02:58]} 2. Nf3 {[%clk 0:03:01]}  Nc6 {[%clk 0:02:58]} 3. Bb5 {[%clk 0:02:58]}  f5 {[%clk 0:02:58]} 4. d3 {[%clk 0:02:54]}  fxe4 {[%clk 0:02:58]} 5. dxe4 {[%clk 0:02:54]}  Nf6 {[%clk 0:02:59]} 6. O-O {[%clk 0:02:52]}  Bc5 {[%clk 0:02:59]} 7. Bg5 {[%clk 0:02:40]}  d6 {[%clk 0:02:51]} 8. Nc3 {[%clk 0:02:36]}  O-O {[%clk 0:02:51]} 9. Nd5 {[%clk 0:02:35]}  Kh8 {[%clk 0:02:52]} 10. Nh4 {[%clk 0:02:21]}  Nd4 {[%clk 0:02:52]} 11. Bd3 {[%clk 0:02:17]}  Ne6 {[%clk 0:02:41]} 12. Bxf6 {[%clk 0:02:07]}  gxf6 {[%clk 0:02:41]} 13. Qh5 {[%clk 0:02:04]}  Rg8 {[%clk 0:02:35]} 14. Qf7 {[%clk 0:01:59]}  c6 {[%clk 0:02:14]} 15. Qxf6+ {[%clk 0:01:55]}  Qxf6 {[%clk 0:02:11]} 16. Nxf6 {[%clk 0:01:56]}  Rf8 {[%clk 0:02:09]} 17. Nh5 {[%clk 0:01:54]}  Nf4 {[%clk 0:02:00]} 18. Nxf4 {[%clk 0:01:52]}  Rxf4 {[%clk 0:02:01]} 19. g3 {[%clk 0:01:47]}  Rxh4 {[%clk 0:02:01]} 20. gxh4 {[%clk 0:01:45]}  Bh3 {[%clk 0:01:51]} 21. Kh1 {[%clk 0:01:46]}  Bxf1 {[%clk 0:01:50]} 22. Rxf1 {[%clk 0:01:44]}  Rf8 {[%clk 0:01:50]} 23. Kg2 {[%clk 0:01:40]}  Kg7 {[%clk 0:01:43]} 24. Kg3 {[%clk 0:01:41]}  Rf4 {[%clk 0:01:40]} 25. f3 {[%clk 0:01:37]}  h5 {[%clk 0:01:37]} 26. Be2 {[%clk 0:01:35]}  Kh6 {[%clk 0:01:37]} 27. Rd1 {[%clk 0:01:35]}  Rf6 {[%clk 0:01:36]} 28. a3 {[%clk 0:01:31]}  a5 {[%clk 0:01:35]} 29. c3 {[%clk 0:01:24]}  Rg6+ {[%clk 0:01:29]} 30. Kh3 {[%clk 0:01:23]}  Bf2 {[%clk 0:01:18]} 31. Rf1 {[%clk 0:01:16]}  Be3 {[%clk 0:01:18]} 32. b4 {[%clk 0:01:14]}  Bd2 {[%clk 0:00:52]} 33. bxa5 {[%clk 0:01:09]}  Bxc3 {[%clk 0:00:52]} 34. a6 {[%clk 0:01:05]}  bxa6 {[%clk 0:00:52]} 35. Rc1 {[%clk 0:01:06]}  Bb2 {[%clk 0:00:42]} 36. Rxc6 {[%clk 0:01:06]}  Bxa3 {[%clk 0:00:42]} 37. Rxa6 {[%clk 0:01:06]}  Bc5 {[%clk 0:00:41]} 38. Ra8 {[%clk 0:01:03]}  Kg7 {[%clk 0:00:28]} 39. Bc4 {[%clk 0:01:02]}  Rf6 {[%clk 0:00:26]} 40. Be2 {[%clk 0:00:52]}  Be3 {[%clk 0:00:23]} 41. Rc8 {[%clk 0:00:39]}  Bf4 {[%clk 0:00:23]} 42. Rc7+ {[%clk 0:00:38]}  Rf7 {[%clk 0:00:23]} 43. Rxf7+ {[%clk 0:00:38]}  Kxf7 {[%clk 0:00:23]} 44. Bc4+ {[%clk 0:00:39]}  Kf6 {[%clk 0:00:22]} 45. Bd5 {[%clk 0:00:38]}  Kg6 {[%clk 0:00:23]} 46. Bc6 {[%clk 0:00:38]}  Kh6 {[%clk 0:00:23]} 47. Be8 {[%clk 0:00:38]}  Be3 {[%clk 0:00:23]} 48. Kg2 {[%clk 0:00:39]}  Bf4 {[%clk 0:00:23]} 49. Kh3 {[%clk 0:00:39]}  Be3 {[%clk 0:00:23]} 50. Bf7 {[%clk 0:00:39]}  Bf2 {[%clk 0:00:22]} 51. Bd5 {[%clk 0:00:39]}  Be1 {[%clk 0:00:23]} 52. Kg2 {[%clk 0:00:40]}  Bxh4 {[%clk 0:00:23]} 53. Kh3 {[%clk 0:00:40]}  Bg5 {[%clk 0:00:23]} 54. Kg2 {[%clk 0:00:12]}  Bf4 {[%clk 0:00:24]} 55. Be6 {[%clk 0:00:11]}  Kg5 {[%clk 0:00:24]} 56. Bd5 {[%clk 0:00:12]}  Bd2 {[%clk 0:00:24]} 57. Be6 {[%clk 0:00:12]}  h4 {[%clk 0:00:24]} 58. Bd5 {[%clk 0:00:13]}  Kf4 {[%clk 0:00:24]} 59. h3 {[%clk 0:00:13]}  Be1 {[%clk 0:00:24]} 60. Be6 {[%clk 0:00:13]}  Bg3 {[%clk 0:00:24]} 61. Bd5 {[%clk 0:00:14]}  Ke3 {[%clk 0:00:25]} 62. Be6 {[%clk 0:00:12]}  Bf4 {[%clk 0:00:25]} 63. Bd5 {[%clk 0:00:13]}  Kd4 {[%clk 0:00:25]} 64. Be6 {[%clk 0:00:13]}  Ke3 {[%clk 0:00:26]} 65. Bd5 {[%clk 0:00:12]}  Kd4 {[%clk 0:00:23]} 1/2-1/2


[Site "https://www.chess.com"]

[Event "Titled Tuesday Blitz August 1 Early 2023"]
[White "Skvortsov, Andrei"]
[Black "Cnejev, Vladimir-Alexandru"]
[WhiteFideId "24108600"]
[BlackFideId "1260898"]
[WhiteElo "2727"]
[BlackElo "2586"]
[Result "1-0"]
[Round "11"]
[TimeControl "180+1"]
[Date "2023.08.01"]
[WhiteClock "0:01:28"]
[BlackClock "0:00:01"]
[Board "35"]

1. e4 {[%clk 0:03:00]}  g6 {[%clk 0:03:00]} 2. Nf3 {[%clk 0:03:00]}  Bg7 {[%clk 0:03:01]} 3. d4 {[%clk 0:03:00]}  d6 {[%clk 0:03:02]} 4. Bc4 {[%clk 0:03:00]}  a6 {[%clk 0:02:58]} 5. c3 {[%clk 0:02:56]}  b5 {[%clk 0:02:58]} 6. Bd5 {[%clk 0:02:55]}  c6 {[%clk 0:02:53]} 7. Bb3 {[%clk 0:02:56]}  Bb7 {[%clk 0:02:52]} 8. O-O {[%clk 0:02:56]}  Nf6 {[%clk 0:02:51]} 9. e5 {[%clk 0:02:55]}  dxe5 {[%clk 0:02:48]} 10. Nxe5 {[%clk 0:02:55]}  O-O {[%clk 0:02:48]} 11. Qf3 {[%clk 0:02:49]}  Qc7 {[%clk 0:02:45]} 12. Qh3 {[%clk 0:02:47]}  c5 {[%clk 0:02:40]} 13. Bf4 {[%clk 0:02:42]}  Nh5 {[%clk 0:02:40]} 14. Be3 {[%clk 0:02:29]}  c4 {[%clk 0:02:24]} 15. Bd1 {[%clk 0:02:27]}  Bxe5 {[%clk 0:02:19]} 16. dxe5 {[%clk 0:02:27]}  Qxe5 {[%clk 0:02:20]} 17. Bd4 {[%clk 0:02:27]}  Qg5 {[%clk 0:02:11]} 18. Be3 {[%clk 0:02:17]}  Nf4 {[%clk 0:02:06]} 19. Qg3 {[%clk 0:02:10]}  Qxg3 {[%clk 0:02:01]} 20. hxg3 {[%clk 0:02:11]}  Nd5 {[%clk 0:01:54]} 21. Bh6 {[%clk 0:02:07]}  Rd8 {[%clk 0:01:54]} 22. Bf3 {[%clk 0:02:07]}  Nd7 {[%clk 0:01:50]} 23. Nd2 {[%clk 0:02:07]}  Ne5 {[%clk 0:01:49]} 24. Be2 {[%clk 0:02:06]}  f6 {[%clk 0:01:44]} 25. Nf3 {[%clk 0:02:04]}  Nf7 {[%clk 0:01:12]} 26. Bc1 {[%clk 0:01:59]}  e5 {[%clk 0:01:12]} 27. a4 {[%clk 0:01:59]}  f5 {[%clk 0:00:54]} 28. Ng5 {[%clk 0:01:55]}  Nxg5 {[%clk 0:00:48]} 29. Bxg5 {[%clk 0:01:56]}  Rdc8 {[%clk 0:00:34]} 30. axb5 {[%clk 0:01:56]}  axb5 {[%clk 0:00:35]} 31. Rfe1 {[%clk 0:01:54]}  Kf7 {[%clk 0:00:35]} 32. Bf1 {[%clk 0:01:51]}  Ke6 {[%clk 0:00:31]} 33. Bd2 {[%clk 0:01:49]}  Rxa1 {[%clk 0:00:28]} 34. Rxa1 {[%clk 0:01:50]}  Ra8 {[%clk 0:00:28]} 35. Rxa8 {[%clk 0:01:50]}  Bxa8 {[%clk 0:00:29]} 36. f3 {[%clk 0:01:50]}  Nb6 {[%clk 0:00:25]} 37. Kf2 {[%clk 0:01:50]}  Na4 {[%clk 0:00:23]} 38. Bc1 {[%clk 0:01:50]}  Bc6 {[%clk 0:00:15]} 39. Ke1 {[%clk 0:01:50]}  h6 {[%clk 0:00:13]} 40. Be2 {[%clk 0:01:43]}  g5 {[%clk 0:00:14]} 41. Bd1 {[%clk 0:01:43]}  Nc5 {[%clk 0:00:14]} 42. Bc2 {[%clk 0:01:42]}  f4 {[%clk 0:00:08]} 43. gxf4 {[%clk 0:01:40]}  exf4 {[%clk 0:00:08]} 44. Ke2 {[%clk 0:01:36]}  Ke5 {[%clk 0:00:08]} 45. Bd2 {[%clk 0:01:36]}  Bd7 {[%clk 0:00:08]} 46. Be1 {[%clk 0:01:33]}  Bf5 {[%clk 0:00:09]} 47. Bf2 {[%clk 0:01:33]}  Ne6 {[%clk 0:00:01]} 48. Bd1 {[%clk 0:01:34]}  Bd3+ {[%clk 0:00:01]} 49. Kd2 {[%clk 0:01:34]}  Kd5 {[%clk 0:00:02]} 50. g4 {[%clk 0:01:31]}  Ng7 {[%clk 0:00:02]} 51. Bd4 {[%clk 0:01:30]}  Ne6 {[%clk 0:00:01]} 52. Bf6 {[%clk 0:01:30]}  Nd8 {[%clk 0:00:01]} 53. Bxd8 {[%clk 0:01:28]} 1-0


[Site "https://www.chess.com"]

[Event "Titled Tuesday Blitz August 1 Early 2023"]
[White "Amilal Munkhdalai"]
[Black "Al-Tarboush, Ward"]
[WhiteFideId "4903250"]
[BlackFideId "7601450"]
[WhiteElo "2727"]
[BlackElo "2559"]
[Result "1-0"]
[Round "11"]
[TimeControl "180+1"]
[Date "2023.08.01"]
[WhiteClock "0:00:29"]
[BlackClock "0:00:00"]
[Board "36"]

1. e4 {[%clk 0:03:00]}  c5 {[%clk 0:02:59]} 2. Nf3 {[%clk 0:03:01]}  Nc6 {[%clk 0:02:58]} 3. d4 {[%clk 0:03:01]}  cxd4 {[%clk 0:02:59]} 4. Nxd4 {[%clk 0:03:02]}  Nf6 {[%clk 0:03:00]} 5. Nc3 {[%clk 0:03:01]}  e5 {[%clk 0:03:00]} 6. Ndb5 {[%clk 0:03:00]}  d6 {[%clk 0:03:00]} 7. Bg5 {[%clk 0:03:00]}  a6 {[%clk 0:03:00]} 8. Na3 {[%clk 0:03:01]}  b5 {[%clk 0:03:00]} 9. Nd5 {[%clk 0:03:01]}  Be7 {[%clk 0:03:01]} 10. Bxf6 {[%clk 0:03:00]}  Bxf6 {[%clk 0:03:01]} 11. c3 {[%clk 0:03:01]}  Bg5 {[%clk 0:03:00]} 12. Bd3 {[%clk 0:02:57]}  O-O {[%clk 0:02:56]} 13. Nc2 {[%clk 0:02:57]}  Rb8 {[%clk 0:02:55]} 14. O-O {[%clk 0:02:56]}  a5 {[%clk 0:02:54]} 15. a4 {[%clk 0:02:55]}  b4 {[%clk 0:02:54]} 16. cxb4 {[%clk 0:02:55]}  axb4 {[%clk 0:02:54]} 17. Bb5 {[%clk 0:02:54]}  Bd7 {[%clk 0:02:52]} 18. b3 {[%clk 0:02:48]}  Kh8 {[%clk 0:02:35]} 19. Qd3 {[%clk 0:02:35]}  f5 {[%clk 0:02:31]} 20. Ncxb4 {[%clk 0:02:20]}  Nxb4 {[%clk 0:02:18]} 21. Nxb4 {[%clk 0:02:19]}  Bxb5 {[%clk 0:02:14]} 22. axb5 {[%clk 0:02:18]}  fxe4 {[%clk 0:02:14]} 23. Qd5 {[%clk 0:02:10]}  Qb6 {[%clk 0:02:09]} 24. Nc6 {[%clk 0:01:51]}  Qxb5 {[%clk 0:02:05]} 25. Qxd6 {[%clk 0:01:50]}  Rbe8 {[%clk 0:01:32]} 26. Ra5 {[%clk 0:01:38]}  Qb6 {[%clk 0:01:32]} 27. Rxe5 {[%clk 0:01:35]}  Bf4 {[%clk 0:01:17]} 28. Qd5 {[%clk 0:00:58]}  Bxe5 {[%clk 0:01:15]} 29. Nxe5 {[%clk 0:00:58]}  Qc7 {[%clk 0:00:49]} 30. Nc4 {[%clk 0:00:55]}  h6 {[%clk 0:00:44]} 31. h4 {[%clk 0:00:53]}  Qf4 {[%clk 0:00:39]} 32. g3 {[%clk 0:00:46]}  Qf3 {[%clk 0:00:33]} 33. Qd6 {[%clk 0:00:36]}  e3 {[%clk 0:00:24]} 34. Ne5 {[%clk 0:00:30]}  exf2+ {[%clk 0:00:15]} 35. Kh2 {[%clk 0:00:30]}  Qe4 {[%clk 0:00:07]} 36. Ng6+ {[%clk 0:00:30]}  Kh7 {[%clk 0:00:06]} 37. Nxf8+ {[%clk 0:00:30]}  Kg8 {[%clk 0:00:00]} 38. Rxf2 {[%clk 0:00:29]} 1-0


[Site "https://www.chess.com"]

[Event "Titled Tuesday Blitz August 1 Early 2023"]
[White "Koellner, Ruben Gideon"]
[Black "Bazilius, Augustinas"]
[WhiteFideId "12993093"]
[BlackFideId "12832251"]
[WhiteElo "2725"]
[BlackElo "2453"]
[Result "1-0"]
[Round "11"]
[TimeControl "180+1"]
[Date "2023.08.01"]
[WhiteClock "0:00:46"]
[BlackClock "0:00:02"]
[Board "37"]

1. d4 {[%clk 0:03:00]}  Nf6 {[%clk 0:02:56]} 2. Nf3 {[%clk 0:02:59]}  g6 {[%clk 0:02:55]} 3. Nbd2 {[%clk 0:02:59]}  d5 {[%clk 0:02:55]} 4. e3 {[%clk 0:02:59]}  Bg7 {[%clk 0:02:55]} 5. b4 {[%clk 0:02:56]}  O-O {[%clk 0:02:47]} 6. c4 {[%clk 0:02:56]}  dxc4 {[%clk 0:02:48]} 7. Bxc4 {[%clk 0:02:57]}  b6 {[%clk 0:02:44]} 8. Bb2 {[%clk 0:02:55]}  Bb7 {[%clk 0:02:44]} 9. O-O {[%clk 0:02:52]}  Ne4 {[%clk 0:02:39]} 10. Nxe4 {[%clk 0:02:51]}  Bxe4 {[%clk 0:02:40]} 11. b5 {[%clk 0:02:49]}  c6 {[%clk 0:02:37]} 12. a4 {[%clk 0:02:48]}  a6 {[%clk 0:02:30]} 13. Nd2 {[%clk 0:02:44]}  Bd5 {[%clk 0:02:28]} 14. Bxd5 {[%clk 0:02:42]}  cxd5 {[%clk 0:02:28]} 15. bxa6 {[%clk 0:02:40]}  Rxa6 {[%clk 0:02:20]} 16. Qb3 {[%clk 0:02:41]}  Nd7 {[%clk 0:02:14]} 17. Qxd5 {[%clk 0:02:39]}  Nf6 {[%clk 0:02:09]} 18. Qxd8 {[%clk 0:02:37]}  Rxd8 {[%clk 0:02:10]} 19. Ra2 {[%clk 0:02:22]}  Rda8 {[%clk 0:02:09]} 20. Rfa1 {[%clk 0:02:22]}  Nd5 {[%clk 0:02:10]} 21. a5 {[%clk 0:02:02]}  Rxa5 {[%clk 0:02:00]} 22. Rxa5 {[%clk 0:02:02]}  Rxa5 {[%clk 0:02:01]} 23. Rxa5 {[%clk 0:02:00]}  bxa5 {[%clk 0:02:02]} 24. Kf1 {[%clk 0:02:01]}  f5 {[%clk 0:01:41]} 25. Nc4 {[%clk 0:02:00]}  a4 {[%clk 0:01:38]} 26. Ke2 {[%clk 0:02:00]}  Kf7 {[%clk 0:01:35]} 27. Kd3 {[%clk 0:02:00]}  Nb4+ {[%clk 0:01:34]} 28. Kc3 {[%clk 0:01:55]}  Nd5+ {[%clk 0:01:34]} 29. Kc2 {[%clk 0:01:52]}  Nb4+ {[%clk 0:01:28]} 30. Kd2 {[%clk 0:01:52]}  g5 {[%clk 0:01:17]} 31. Nb6 {[%clk 0:01:51]}  e6 {[%clk 0:01:08]} 32. Nxa4 {[%clk 0:01:51]}  Nd5 {[%clk 0:00:55]} 33. Ba3 {[%clk 0:01:49]}  Nf6 {[%clk 0:00:55]} 34. Ke2 {[%clk 0:01:33]}  f4 {[%clk 0:00:54]} 35. Bd6 {[%clk 0:01:30]}  fxe3 {[%clk 0:00:53]} 36. fxe3 {[%clk 0:01:30]}  Ne4 {[%clk 0:00:48]} 37. Bb4 {[%clk 0:01:22]}  h5 {[%clk 0:00:37]} 38. Nc5 {[%clk 0:01:15]}  Nxc5 {[%clk 0:00:27]} 39. Bxc5 {[%clk 0:01:10]}  Bf6 {[%clk 0:00:16]} 40. Kd3 {[%clk 0:01:10]}  Bd8 {[%clk 0:00:17]} 41. Bd6 {[%clk 0:01:09]}  Ke8 {[%clk 0:00:12]} 42. Ke4 {[%clk 0:01:05]}  Kf7 {[%clk 0:00:12]} 43. h3 {[%clk 0:01:05]}  Ba5 {[%clk 0:00:12]} 44. Be5 {[%clk 0:01:01]}  Bc3 {[%clk 0:00:06]} 45. Bc7 {[%clk 0:01:01]}  Ba1 {[%clk 0:00:06]} 46. Bd8 {[%clk 0:01:01]}  g4 {[%clk 0:00:02]} 47. hxg4 {[%clk 0:01:01]}  hxg4 {[%clk 0:00:03]} 48. Kf4 {[%clk 0:01:02]}  Bc3 {[%clk 0:00:03]} 49. Kxg4 {[%clk 0:01:01]}  Ke8 {[%clk 0:00:02]} 50. Bf6 {[%clk 0:01:01]}  Kf7 {[%clk 0:00:03]} 51. Be5 {[%clk 0:01:01]}  Bd2 {[%clk 0:00:04]} 52. Kf3 {[%clk 0:01:01]}  Be1 {[%clk 0:00:04]} 53. g4 {[%clk 0:01:01]}  Bh4 {[%clk 0:00:05]} 54. Ke4 {[%clk 0:01:01]}  Bg5 {[%clk 0:00:05]} 55. Bf4 {[%clk 0:01:01]}  Bf6 {[%clk 0:00:04]} 56. Kd3 {[%clk 0:01:01]}  Be7 {[%clk 0:00:05]} 57. e4 {[%clk 0:01:01]}  Kf6 {[%clk 0:00:04]} 58. d5 {[%clk 0:00:58]}  exd5 {[%clk 0:00:05]} 59. exd5 {[%clk 0:00:59]}  Kf7 {[%clk 0:00:05]} 60. Ke4 {[%clk 0:00:58]}  Kf6 {[%clk 0:00:05]} 61. d6 {[%clk 0:00:55]}  Bd8 {[%clk 0:00:05]} 62. Kd5 {[%clk 0:00:56]}  Kf7 {[%clk 0:00:04]} 63. Be5 {[%clk 0:00:55]}  Kg6 {[%clk 0:00:03]} 64. Bf4 {[%clk 0:00:51]}  Kf6 {[%clk 0:00:03]} 65. Be3 {[%clk 0:00:48]}  Kf7 {[%clk 0:00:02]} 66. Ke5 {[%clk 0:00:47]}  Ke8 {[%clk 0:00:02]} 67. Ke6 {[%clk 0:00:47]}  Bh4 {[%clk 0:00:02]} 68. d7+ {[%clk 0:00:46]}  Kd8 {[%clk 0:00:02]} 69. Bb6# {[%clk 0:00:46]} 1-0


[Site "https://www.chess.com"]